[Event "ESCC-65 2022"]
[Site "Lublin"]
[Date "2022.07.07"]
[Round "3.3"]
[White "Schulz, Michael"]
[Black "Dobosz, Henryk"]
[Result "0-1"]
[ECO "A45"]
[WhiteElo "2217"]
[BlackElo "2354"]
[Annotator "RC"]
[PlyCount "94"]
[EventDate "2022.07.05"]
[EventType "swiss"]
[EventCountry "POL"]
[SourceTitle "playchess.com"]
[Source "ChessBase"]
[SourceQuality "1"]
[TimeControl "40/5400+30:1800+30"]

1. d4 {[%emt 0:00:08]} Nf6 {[%emt 0:00:41]} 2. Bg5 e6 {[%emt 0:01:03]} 3. Nd2 {[%emt 0:00:15]} h6 {[%emt 0:01:04]} 4. Bh4 {[%emt 0:00:06]} c5 {[%emt 0:01:01]} 5. e3 {[%emt 0:00:15]} cxd4 {[%emt 0:01:58]} 6. exd4 {[%emt 0:00:06]} Be7 {[%emt 0:00:39]} 7. Ngf3 {[%emt 0:00:38]} b6 {[%emt 0:01:17]} 8. Bd3 {[%emt 0:01:45]} Bb7 {[%emt 0:00:16]} 9. O-O {[%emt 0:00:14]} O-O {[%emt 0:00:06]} 10. Re1 {[%emt 0:02:08]} d6 {[%emt 0:01:18]} 11. c3 {[%emt 0:03:02]} Nbd7 {[%emt 0:00:17]} 12. Qe2 {[%emt 0:11:39]} Re8 {[%emt 0:23:23]} 13. Ba6 {[%emt 0:04:12]} Qc8 14. Bxb7 {[%emt 0:02:35]} Qxb7 {[%emt 0:02:12]} 15. a4 {[%emt 0:01:45]} a6 {[%emt 0:03:20]} 16. c4 {[%emt 0:12:50]} Bf8 {[%emt 0:07:14]} 17. b3 {[%emt 0:10:51]} d5 {[%emt 0:08:48]} 18. Rec1 {[%emt 0:04:33]} Rac8 {[%emt 0:08:48]} 19. Ne5 {[%emt 0:05:22]} Nxe5 {[%emt 0:02:15]} 20. Bxf6 {[%emt 0:05:39]} Ng6 {[%emt 0:08:48]} 21. Be5 {[%emt 0:00:42]} Nxe5 {[%emt 0:00:45]} 22. Qxe5 {[%emt 0:02:13]} Be7 {[%emt 0:05:45]} 23. Nf3 {[%emt 0:01:47]} Bf6 {[%emt 0:00:12]} 24. Qe3 {[%emt 0:04:05]} Re7 {[%emt 0:04:44]} 25. a5 dxc4 {[%emt 0:02:26]} 26. bxc4 {[%emt 0:08:31]} b5 {[%emt 0:05:17]} 27. Rab1 {[%emt 0:01:32]} Rec7 {[%emt 0:00:49]} 28. c5 {[%emt 0:07:08]} Qd5 {[%emt 0:00:33]} 29. h4 {[%emt 0:00:42]} Rd7 {[%emt 0:01:32]} 30. Rd1 {[%emt 0:02:51]} Rcd8 {[%emt 0:00:11]} 31. Rd2 {[%emt 0:00:32]} Qc4 {[%emt 0:01:07]} 32. Rbd1 {[%emt 0:00:27]} Rd5 {[%emt 0:00:34]} 33. g3 {[%emt 0:02:01]} Qb4 {[%emt 0:01:00]} 34. Rc1 {[%emt 0:04:06]} Qxa5 {[%emt 0:02:46]} 35. c6 {[%emt 0:00:34]} Rc8 {[%emt 0:00:28]} 36. Rdc2 {[%emt 0:00:40]} Qb6 {[%emt 0:01:11]} 37. Ne5 {[%emt 0:00:53]} Bxe5 {[%emt 0:00:57]} 38. dxe5 {[%emt 0:00:10]} Qxe3 {[%emt 0:00:22]} 39. fxe3 {[%emt 0:00:01]} b4 {[%emt 0:01:50]} 40. c7 {[%emt 0:00:00]} Kf8 {[%emt 0:00:00]} 41. Rc6 {[%emt 0:01:51]} a5 {[%emt 0:03:05]} 42. e4 {[%emt 0:01:32]} Rxe5 {[%emt 0:07:12]} 43. Ra6 {[%emt 0:01:57]} Rb5 {[%emt 0:03:31]} 44. Kf2 {[%emt 0:01:21]} b3 {[%emt 0:00:24]} 45. Ra7 {[%emt 0:00:20]} Ke7 {[%emt 0:01:13]} 46. Ke3 {[%emt 0:00:22]} b2 {[%emt 0:00:13]} 47. Rb1 {[%emt 0:00:19]} Kd6 {[%emt 0:00:17]} 0-1

[Event "ESCC-65 2022"]
[Site "Lublin"]
[Date "2022.07.07"]
[Round "3.4"]
[White "Berkley, Stephen W"]
[Black "Syre, Christian"]
[Result "0-1"]
[ECO "A53"]
[WhiteElo "1525"]
[BlackElo "2243"]
[Annotator "RC"]
[PlyCount "68"]
[EventDate "2022.07.05"]
[EventType "swiss"]
[EventCountry "POL"]
[SourceTitle "playchess.com"]
[Source "ChessBase"]
[SourceQuality "1"]
[TimeControl "40/5400+30:1800+30"]

1. d4 {[%emt 0:00:08]} Nf6 {[%emt 0:00:05]} 2. c4 {[%emt 0:00:13]} d6 {[%emt 0:00:11]} 3. Nc3 {[%emt 0:00:58]} Nbd7 {[%emt 0:00:12]} 4. e4 {[%emt 0:06:05]} e5 {[%emt 0:00:21]} 5. d5 {[%emt 0:00:09]} Nc5 {[%emt 0:01:08]} 6. f3 {[%emt 0:00:14]} a5 {[%emt 0:00:02]} 7. Be3 {[%emt 0:01:30]} Be7 {[%emt 0:08:01]} 8. Nge2 {[%emt 0:03:24]} Nfd7 {[%emt 0:16:10]} 9. Nc1 {[%emt 0:05:54]} Bg5 {[%emt 0:02:46]} 10. Qd2 {[%emt 0:02:05]} Bxe3 {[%emt 0:06:22]} 11. Qxe3 {[%emt 0:00:07]} O-O {[%emt 0:00:07]} 12. Nd3 {[%emt 0:02:03]} g6 {[%emt 0:04:14]} 13. O-O-O {[%emt 0:07:00]} Nxd3+ {[%emt 0:06:24]} 14. Bxd3 {[%emt 0:00:35]} Nc5 {[%emt 0:00:01]} 15. Bb1 {[%emt 0:08:12]} Bd7 {[%emt 0:00:11]} 16. Qh6 {[%emt 0:03:17]} Qe7 {[%emt 0:03:17]} 17. h4 {[%emt 0:07:09]} f6 {[%emt 0:09:36]} 18. Rdf1 {[%emt 0:03:31]} Rf7 {[%emt 0:07:30]} 19. Qd2 {[%emt 0:09:37]} Raf8 {[%emt 0:00:42]} 20. Bc2 {[%emt 0:01:27]} f5 {[%emt 0:03:46]} 21. Re1 {[%emt 0:04:07]} b6 {[%emt 0:01:51]} 22. b3 {[%emt 0:02:56]} fxe4 {[%emt 0:00:52]} 23. Nxe4 {[%emt 0:00:17]} Nxe4 {[%emt 0:02:13]} 24. Bxe4 {[%emt 0:00:06]} Bf5 {[%emt 0:02:51]} 25. h5 {[%emt 0:05:30]} g5 {[%emt 0:01:34]} 26. Bxf5 {[%emt 0:02:35]} Rxf5 {[%emt 0:00:03]} 27. h6 {[%emt 0:00:56]} Kh8 {[%emt 0:08:11]} 28. Re4 {[%emt 0:06:48]} Rf4 {[%emt 0:00:24]} 29. Rh5 {[%emt 0:00:52]} Qf6 {[%emt 0:11:43]} 30. Rxf4 {[%emt 0:00:17]} gxf4 {[%emt 0:00:06]} 31. Qe1 {[%emt 0:04:06]} Rg8 {[%emt 0:00:26]} 32. Qh1 {[%emt 0:00:21]} Rg3 {[%emt 0:00:52]} 33. Rh3 {[%emt 0:00:30]} e4 {[%emt 0:00:57]} 34. Rxg3 {[%emt 0:01:06]} Qa1+ {[%emt 0:00:02]} 0-1

[Event "ESCC-65 2022"]
[Site "Lublin"]
[Date "2022.07.07"]
[Round "3.5"]
[White "Lederman, Leon"]
[Black "Rak, Tomasz"]
[Result "1-0"]
[ECO "B35"]
[WhiteElo "2213"]
[BlackElo "1887"]
[Annotator "RC"]
[PlyCount "70"]
[EventDate "2022.07.05"]
[EventType "swiss"]
[EventCountry "POL"]
[SourceTitle "playchess.com"]
[Source "ChessBase"]
[SourceQuality "1"]
[TimeControl "40/5400+30:1800+30"]

1. e4 {[%emt 0:00:03]} c5 {[%emt 0:00:02]} 2. Nf3 {[%emt 0:00:05]} Nc6 {[%emt 0:00:05]} 3. d4 {[%emt 0:00:03]} cxd4 {[%emt 0:00:12]} 4. Nxd4 {[%emt 0:00:02]} Nf6 {[%emt 0:00:14]} 5. Nc3 {[%emt 0:00:05]} g6 {[%emt 0:00:17]} 6. Be3 {[%emt 0:02:11]} Bg7 {[%emt 0:00:06]} 7. Bc4 {[%emt 0:00:05]} O-O {[%emt 0:00:18]} 8. Bb3 {[%emt 0:00:02]} d6 {[%emt 0:00:17]} 9. f3 {[%emt 0:00:05]} Bd7 {[%emt 0:00:14]} 10. h4 {[%emt 0:00:11]} Qb8 {[%emt 0:00:35]} 11. h5 {[%emt 0:00:16]} Nxh5 {[%emt 0:00:33]} 12. g4 {[%emt 0:00:06]} Nf6 {[%emt 0:00:15]} 13. Qd2 {[%emt 0:00:18]} d5 {[%emt 0:05:01]} 14. O-O-O {[%emt 0:06:38]} Rc8 {[%emt 0:06:34]} 15. Nxd5 Nxd5 {[%emt 0:00:24]} 16. exd5 {[%emt 0:02:51]} Ne5 {[%emt 0:00:32]} 17. Qh2 {[%emt 0:00:58]} h5 {[%emt 0:07:29]} 18. gxh5 {[%emt 0:01:24]} Bf5 {[%emt 0:01:22]} 19. Nxf5 {[%emt 0:02:24]} gxf5 {[%emt 0:00:06]} 20. Qf4 {[%emt 0:01:21]} Nc4 {[%emt 0:08:41]} 21. d6 {[%emt 0:06:49]} Nxe3 {[%emt 0:09:07]} 22. Qxe3 {[%emt 0:02:09]} e6 {[%emt 0:03:25]} 23. Rhg1 {[%emt 0:01:06]} Kh7 {[%emt 0:01:22]} 24. Rxg7+ {[%emt 0:00:08]} Kxg7 {[%emt 0:00:07]} 25. Qg5+ {[%emt 0:01:32]} Kh7 {[%emt 0:00:20]} 26. Qe7 {[%emt 0:02:15]} Rf8 {[%emt 0:02:56]} 27. Bxe6 {[%emt 0:01:14]} Qd8 {[%emt 0:00:53]} 28. Bxf7 {[%emt 0:02:44]} Qxe7 {[%emt 0:05:41]} 29. Bg6+ {[%emt 0:01:25]} Kh6 {[%emt 0:00:55]} 30. dxe7 {[%emt 0:00:08]} Rg8 {[%emt 0:01:03]} 31. Re1 {[%emt 0:04:31]} Rae8 {[%emt 0:02:23]} 32. Bxe8 {[%emt 0:00:11]} Rxe8 {[%emt 0:00:02]} 33. Re5 {[%emt 0:00:18]} Kg5 {[%emt 0:00:50]} 34. Kd2 {[%emt 0:00:15]} Kf4 {[%emt 0:00:36]} 35. Re6 {[%emt 0:00:26]} Rc8 1-0

[Event "ESCC-65 2022"]
[Site "Lublin"]
[Date "2022.07.07"]
[Round "3.6"]
[White "Sokolowski, Ryszard"]
[Black "Bogdanov, Valentin"]
[Result "0-1"]
[ECO "E00"]
[WhiteElo "2050"]
[BlackElo "2333"]
[Annotator "RC"]
[PlyCount "78"]
[EventDate "2022.07.05"]
[EventType "swiss"]
[EventCountry "POL"]
[SourceTitle "playchess.com"]
[Source "ChessBase"]
[SourceQuality "1"]
[TimeControl "40/5400+30:1800+30"]

1. d4 e6 {[%emt 0:00:36]} 2. c4 {[%emt 0:01:09]} Bb4+ {[%emt 0:00:24]} 3. Bd2 {[%emt 0:00:33]} a5 {[%emt 0:00:14]} 4. Nf3 {[%emt 0:00:24]} Nf6 {[%emt 0:01:12]} 5. Qc2 {[%emt 0:01:08]} d5 {[%emt 0:02:01]} 6. a3 {[%emt 0:05:51]} Bxd2+ {[%emt 0:04:02]} 7. Nbxd2 {[%emt 0:00:04]} O-O {[%emt 0:10:50]} 8. e4 {[%emt 0:02:14]} dxe4 {[%emt 0:07:21]} 9. Nxe4 {[%emt 0:00:06]} Nxe4 {[%emt 0:06:03]} 10. Qxe4 {[%emt 0:00:03]} Nd7 {[%emt 0:00:14]} 11. O-O-O {[%emt 0:21:11]} c5 {[%emt 0:04:52]} 12. Bd3 {[%emt 0:14:00]} Nf6 {[%emt 0:00:47]} 13. Qh4 {[%emt 0:00:41]} Qc7 {[%emt 0:07:37]} 14. Kb1 {[%emt 0:11:01]} cxd4 {[%emt 0:04:52]} 15. Rhe1 {[%emt 0:03:38]} h6 {[%emt 0:07:28]} 16. Nxd4 {[%emt 0:03:07]} Bd7 {[%emt 0:05:10]} 17. f4 {[%emt 0:03:28]} Rfd8 {[%emt 0:01:20]} 18. Qf2 {[%emt 0:12:38]} Ba4 {[%emt 0:02:46]} 19. Nb5 {[%emt 0:00:29]} Qc6 {[%emt 0:04:27]} 20. Bc2 {[%emt 0:01:28]} Bxb5 {[%emt 0:02:10]} 21. cxb5 {[%emt 0:00:07]} Qxb5 {[%emt 0:00:21]} 22. Rxd8+ {[%emt 0:00:42]} Rxd8 {[%emt 0:00:09]} 23. Re5 {[%emt 0:00:16]} Rd5 {[%emt 0:06:21]} 24. Re1 {[%emt 0:00:02]} Qd7 {[%emt 0:01:21]} 25. Re2 {[%emt 0:02:53]} g6 {[%emt 0:00:52]} 26. h3 {[%emt 0:00:19]} Kg7 {[%emt 0:00:45]} 27. g4 {[%emt 0:00:20]} Qd6 {[%emt 0:01:28]} 28. Qf3 {[%emt 0:02:38]} b5 {[%emt 0:01:01]} 29. h4 {[%emt 0:00:51]} Rd4 {[%emt 0:03:25]} 30. Rf2 {[%emt 0:00:21]} Nd5 {[%emt 0:02:27]} 31. Be4 {[%emt 0:01:06]} Nxf4 {[%emt 0:01:59]} 32. g5 {[%emt 0:02:08]} hxg5 {[%emt 0:01:55]} 33. hxg5 {[%emt 0:00:03]} Qe5 {[%emt 0:01:15]} 34. Bc6 {[%emt 0:03:16]} Qxg5 {[%emt 0:00:41]} 35. Rc2 {[%emt 0:00:10]} b4 {[%emt 0:01:19]} 36. axb4 {[%emt 0:00:19]} axb4 {[%emt 0:00:09]} 37. Rc1 {[%emt 0:05:54]} Qf5+ {[%emt 0:00:48]} 38. Ka2 {[%emt 0:00:01]} Rd3 {[%emt 0:01:15]} 39. Qf1 {[%emt 0:01:37]} Qa5+ {[%emt 0:00:45]} 0-1

[Event "ESCC-65 2022"]
[Site "Lublin"]
[Date "2022.07.07"]
[Round "3.7"]
[White "Stebbings, Anthony J"]
[Black "Hewson, Brian W R"]
[Result "1-0"]
[ECO "D94"]
[WhiteElo "2283"]
[BlackElo "2049"]
[Annotator "RC"]
[PlyCount "41"]
[EventDate "2022.07.05"]
[EventType "swiss"]
[EventCountry "POL"]
[SourceTitle "playchess.com"]
[Source "ChessBase"]
[SourceQuality "1"]
[TimeControl "40/5400+30:1800+30"]

1. d4 {[%emt 0:00:03]} d5 {[%emt 0:00:10]} 2. c4 {[%emt 0:00:04]} c6 {[%emt 0:00:04]} 3. Nc3 {[%emt 0:00:07]} Nf6 {[%emt 0:00:18]} 4. e3 {[%emt 0:00:06]} g6 {[%emt 0:01:43]} 5. Nf3 {[%emt 0:00:05]} Bg7 {[%emt 0:00:09]} 6. Bd3 {[%emt 0:00:35]} O-O {[%emt 0:02:28]} 7. O-O {[%emt 0:00:08]} Bg4 {[%emt 0:10:40]} 8. h3 {[%emt 0:00:07]} Bxf3 {[%emt 0:00:05]} 9. Qxf3 {[%emt 0:00:04]} Nbd7 {[%emt 0:00:31]} 10. cxd5 {[%emt 0:01:09]} Nxd5 {[%emt 0:02:37]} 11. Nxd5 {[%emt 0:04:59]} cxd5 {[%emt 0:00:06]} 12. Qxd5 {[%emt 0:00:32]} e5 {[%emt 0:00:11]} 13. dxe5 {[%emt 0:20:05]} Nxe5 {[%emt 0:02:42]} 14. Be4 {[%emt 0:01:28]} Qxd5 {[%emt 0:09:38]} 15. Bxd5 {[%emt 0:00:05]} Rfd8 {[%emt 0:01:42]} 16. e4 {[%emt 0:06:19]} Nd3 {[%emt 0:01:32]} 17. Rd1 {[%emt 0:07:42]} Nxb2 {[%emt 0:01:18]} 18. Bxb2 {[%emt 0:00:26]} Bxb2 {[%emt 0:00:11]} 19. Rab1 {[%emt 0:00:12]} Ba3 {[%emt 0:11:04]} 20. Rxb7 Rf8 {[%emt 0:00:13]} 21. Rb3 {[%emt 0:04:57]} 1-0

[Event "ESCC-65 2022"]
[Site "Lublin"]
[Date "2022.07.07"]
[Round "3.8"]
[White "Stokes, Michael"]
[Black "Malesevic, Nedeljko"]
[Result "0-1"]
[ECO "B11"]
[WhiteElo "2024"]
[BlackElo "2228"]
[Annotator "RC"]
[PlyCount "60"]
[EventDate "2022.07.05"]
[EventType "swiss"]
[EventCountry "POL"]
[SourceTitle "playchess.com"]
[Source "ChessBase"]
[SourceQuality "1"]
[TimeControl "40/5400+30:1800+30"]

1. e4 {[%emt 0:00:01]} c6 {[%emt 0:00:09]} 2. Nc3 {[%emt 0:00:05]} d5 {[%emt 0:00:09]} 3. Nf3 {[%emt 0:00:03]} Bg4 {[%emt 0:00:20]} 4. Be2 {[%emt 0:00:07]} e6 {[%emt 0:02:08]} 5. d4 {[%emt 0:01:49]} Nf6 {[%emt 0:02:04]} 6. e5 {[%emt 0:00:47]} Nfd7 {[%emt 0:00:55]} 7. h3 {[%emt 0:00:13]} Bxf3 {[%emt 0:00:54]} 8. Bxf3 {[%emt 0:00:07]} c5 {[%emt 0:00:51]} 9. Be3 {[%emt 0:14:32]} cxd4 {[%emt 0:02:47]} 10. Bxd4 {[%emt 0:00:11]} Nc6 {[%emt 0:01:06]} 11. O-O {[%emt 0:00:26]} Nxd4 {[%emt 0:04:49]} 12. Qxd4 {[%emt 0:00:57]} Bc5 {[%emt 0:00:37]} 13. Qf4 {[%emt 0:04:22]} O-O {[%emt 0:03:06]} 14. Bg4 {[%emt 0:06:15]} Qc7 {[%emt 0:08:25]} 15. Rfe1 {[%emt 0:02:13]} a6 {[%emt 0:03:31]} 16. Rac1 {[%emt 0:11:19]} f5 {[%emt 0:06:33]} 17. Bf3 {[%emt 0:10:15]} Nf6 {[%emt 0:04:55]} 18. Nd1 {[%emt 0:05:16]} b5 {[%emt 0:14:08]} 19. c3 {[%emt 0:08:32]} Ne4 {[%emt 0:03:48]} 20. h4 {[%emt 0:01:55]} Rad8 {[%emt 0:08:31]} 21. g4 {[%emt 0:06:26]} fxg4 {[%emt 0:11:36]} 22. Qxg4 {[%emt 0:00:08]} Rxf3 {[%emt 0:02:01]} 23. Qxf3 {[%emt 0:00:56]} Rf8 {[%emt 0:00:21]} 24. Qh5 {[%emt 0:08:18]} Nxf2 {[%emt 0:01:27]} 25. Nxf2 {[%emt 0:02:55]} Bxf2+ {[%emt 0:00:45]} 26. Kg2 {[%emt 0:01:16]} Bxe1 {[%emt 0:00:42]} 27. Rxe1 {[%emt 0:00:08]} Qc4 {[%emt 0:00:48]} 28. Qg5 {[%emt 0:03:22]} h6 {[%emt 0:02:39]} 29. Qg6 {[%emt 0:02:42]} Qxh4 {[%emt 0:01:28]} 30. Re2 {[%emt 0:07:54]} Kh8 {[%emt 0:02:51]} 0-1

[Event "ESCC-65 2022"]
[Site "Lublin"]
[Date "2022.07.07"]
[Round "3.9"]
[White "Chapman, Terry P D"]
[Black "Severcan, Sedat Sabri"]
[Result "1/2-1/2"]
[ECO "E71"]
[WhiteElo "2207"]
[BlackElo "1849"]
[Annotator "RC"]
[PlyCount "114"]
[EventDate "2022.07.05"]
[EventType "swiss"]
[EventCountry "POL"]
[SourceTitle "playchess.com"]
[Source "ChessBase"]
[SourceQuality "1"]
[TimeControl "40/5400+30:1800+30"]

1. d4 {[%emt 0:00:04]} Nf6 {[%emt 0:01:35]} 2. c4 {[%emt 0:00:06]} d6 {[%emt 0:00:19]} 3. Nc3 {[%emt 0:00:41]} g6 {[%emt 0:00:10]} 4. e4 {[%emt 0:00:10]} Bg7 {[%emt 0:00:16]} 5. h3 {[%emt 0:00:15]} O-O {[%emt 0:01:57]} 6. Be3 {[%emt 0:00:07]} Nbd7 {[%emt 0:02:49]} 7. g4 {[%emt 0:02:55]} c5 {[%emt 0:02:04]} 8. Nf3 {[%emt 0:02:16]} cxd4 {[%emt 0:01:44]} 9. Nxd4 {[%emt 0:00:20]} Nc5 {[%emt 0:01:44]} 10. Bg2 {[%emt 0:02:36]} a6 {[%emt 0:02:44]} 11. O-O {[%emt 0:04:59]} e5 {[%emt 0:04:40]} 12. Nc2 {[%emt 0:11:48]} Ne6 {[%emt 0:09:28]} 13. Qd2 {[%emt 0:04:45]} Ne8 {[%emt 0:12:46]} 14. Rad1 {[%emt 0:11:40]} a5 {[%emt 0:08:50]} 15. Rfe1 {[%emt 0:18:50]} Qh4 {[%emt 0:14:32]} 16. Nd5 {[%emt 0:00:59]} Bd7 {[%emt 0:03:40]} 17. Nb6 {[%emt 0:05:00]} Rd8 {[%emt 0:02:13]} 18. Qxa5 {[%emt 0:00:09]} Bc6 {[%emt 0:03:33]} 19. Nd5 {[%emt 0:04:51]} Bxd5 {[%emt 0:00:58]} 20. exd5 {[%emt 0:01:45]} Nf4 {[%emt 0:01:10]} 21. Bxf4 {[%emt 0:00:26]} exf4 {[%emt 0:00:31]} 22. Nd4 {[%emt 0:00:32]} Rc8 {[%emt 0:07:50]} 23. Qb4 {[%emt 0:02:59]} Rc7 {[%emt 0:05:17]} 24. Nf3 {[%emt 0:01:33]} Qd8 {[%emt 0:00:53]} 25. b3 {[%emt 0:02:22]} Qa8 {[%emt 0:00:32]} 26. Re2 {[%emt 0:02:47]} Rc5 {[%emt 0:00:20]} 27. a4 {[%emt 0:04:29]} Nc7 {[%emt 0:03:50]} 28. Qd2 {[%emt 0:01:21]} Na6 {[%emt 0:02:06]} 29. Qxf4 {[%emt 0:00:29]} Qd8 {[%emt 0:00:26]} 30. Qe3 {[%emt 0:06:15]} Rc7 {[%emt 0:00:59]} 31. Rde1 {[%emt 0:01:42]} Nc5 {[%emt 0:00:45]} 32. Rb1 {[%emt 0:00:50]} Bf6 {[%emt 0:00:21]} 33. Qd2 {[%emt 0:02:26]} Re8 {[%emt 0:02:02]} 34. Rxe8+ {[%emt 0:02:08]} Qxe8 {[%emt 0:00:00]} 35. Re1 {[%emt 0:01:11]} Re7 {[%emt 0:01:16]} 36. Rxe7 {[%emt 0:00:33]} Qxe7 {[%emt 0:00:16]} 37. Qc2 {[%emt 0:00:20]} Qd7 {[%emt 0:00:52]} 38. Bf1 {[%emt 0:01:59]} h6 {[%emt 0:00:21]} 39. a5 {[%emt 0:00:27]} Na6 {[%emt 0:00:27]} 40. Qd2 {[%emt 0:00:00]} Kg7 {[%emt 0:00:00]} 41. Ne1 {[%emt 0:07:23]} Nc5 {[%emt 0:07:17]} 42. b4 {[%emt 0:01:24]} Nb3 {[%emt 0:03:11]} 43. Qa2 {[%emt 0:03:16]} Nd4 {[%emt 0:04:31]} 44. Bg2 {[%emt 0:03:16]} Qe7 {[%emt 0:01:21]} 45. Kf1 {[%emt 0:00:18]} Qc7 {[%emt 0:08:55]} 46. Nd3 {[%emt 0:01:18]} b5 {[%emt 0:04:54]} 47. axb6 {[%emt 0:08:32]} Qxb6 {[%emt 0:00:33]} 48. Qa5 {[%emt 0:01:37]} Qb8 {[%emt 0:01:06]} 49. c5 {[%emt 0:01:07]} Qe8 {[%emt 0:01:58]} 50. Qa2 {[%emt 0:01:49]} Qb5 {[%emt 0:01:17]} 51. Be4 {[%emt 0:00:05]} dxc5 {[%emt 0:00:19]} 52. bxc5 {[%emt 0:00:15]} Nb3 {[%emt 0:00:51]} 53. Qc2 {[%emt 0:04:05]} Nd4 {[%emt 0:01:27]} 54. Qb2 {[%emt 0:01:42]} Nb3 {[%emt 0:00:25]} 55. Qc2 {[%emt 0:00:22]} Nd4 {[%emt 0:00:25]} 56. Qd2 {[%emt 0:01:08]} Nb3 {[%emt 0:00:07]} 57. Qc2 {[%emt 0:01:32]} Nd4 {[%emt 0:00:30]} 1/2-1/2

[Event "ESCC-65 2022"]
[Site "Lublin"]
[Date "2022.07.07"]
[Round "3.10"]
[White "Neumann, Joachim"]
[Black "Olszowski, Andrzej"]
[Result "1-0"]
[ECO "A10"]
[WhiteElo "2082"]
[BlackElo "1600"]
[Annotator "NA RC"]
[PlyCount "99"]
[EventDate "2022.07.05"]
[EventType "swiss"]
[EventCountry "POL"]
[SourceTitle "playchess.com"]
[Source "ChessBase"]
[SourceQuality "1"]
[TimeControl "40/5400+30:1800+30"]

1. c4 {[%emt 0:00:03]} g6 {[%emt 0:01:53]} 2. g3 {[%emt 0:01:05]} Bg7 {[%emt 0:00:10]} 3. Bg2 {[%emt 0:00:09]} e5 {[%emt 0:00:09]} 4. Nc3 {[%emt 0:00:39]} Ne7 {[%emt 0:00:59]} 5. d3 {[%emt 0:04:34]} O-O {[%emt 0:01:30]} 6. Bd2 {[%emt 0:11:53]} Nbc6 {[%emt 0:06:31]} 7. Rb1 {[%emt 0:11:03]} a5 {[%emt 0:05:41]} 8. Nf3 {[%emt 0:10:13]} d6 {[%emt 0:07:17]} 9. O-O {[%emt 0:01:44]} Bd7 {[%emt 0:05:07]} 10. a3 {[%emt 0:08:17]} Qc8 {[%emt 0:05:00]} 11. Nb5 {[%emt 0:07:46]} d5 {[%emt 0:16:57]} 12. cxd5 {[%emt 0:06:47]} Nxd5 {[%emt 0:00:30]} 13. Rc1 {[%emt 0:01:14]} Nce7 {[%emt 0:14:59]} 14. Nd6 {[%emt 0:01:22]} Qb8 {[%emt 0:03:33]} 15. Nc4 {[%emt 0:00:37]} Nc6 {[%emt 0:06:44]} 16. Nfxe5 {[%emt 0:03:37]} Nxe5 {[%emt 0:00:45]} 17. Bxd5 {[%emt 0:11:14]} c6 {[%emt 0:01:42]} 18. Bg2 {[%emt 0:01:47]} Nxc4 {[%emt 0:01:22]} 19. dxc4 {[%emt 0:01:24]} Bxb2 {[%emt 0:01:17]} 20. Rb1 {[%emt 0:03:31]} Bg7 {[%emt 0:01:35]} 21. Bxa5 {[%emt 0:01:00]} Rxa5 {[%emt 0:00:35]} 22. Qxd7 {[%emt 0:00:01]} Qc8 {[%emt 0:04:04]} 23. Qxb7 {[%emt 0:02:40]} Qxb7 {[%emt 0:02:04]} 24. Rxb7 {[%emt 0:00:05]} Rxa3 {[%emt 0:00:11]} 25. Bxc6 {[%emt 0:00:19]} Be5 {[%emt 0:06:41]} 26. Bd5 {[%emt 0:00:07]} Ra1 {[%emt 0:00:34]} 27. Rxa1 {[%emt 0:01:17]} Bxa1 {[%emt 0:00:08]} 28. f4 {[%emt 0:00:41]} Bd4+ {[%emt 0:00:36]} 29. Kg2 {[%emt 0:00:08]} Kg7 {[%emt 0:00:31]} 30. Kf3 {[%emt 0:00:46]} h5 {[%emt 0:02:55]} 31. h3 {[%emt 0:00:20]} Kf6 {[%emt 0:02:48]} 32. e4 {[%emt 0:00:50]} Bc5 {[%emt 0:00:22]} 33. g4 {[%emt 0:00:28]} hxg4+ {[%emt 0:00:18]} 34. hxg4 {[%emt 0:00:07]} g5 {[%emt 0:00:24]} 35. e5+ {[%emt 0:01:10]} Kg6 {[%emt 0:00:54]} 36. f5+ {[%emt 0:04:54]} Kg7 {[%emt 0:00:37]} 37. Ke4 {[%emt 0:01:15]} Kg8 {[%emt 0:00:54]} 38. f6 {[%emt 0:03:29]} Ba3 {[%emt 0:00:34]} 39. Ra7 {[%emt 0:00:22]} Bb4 {[%emt 0:00:30]} 40. Ra8 {[%emt 0:00:00]} Rxa8 {[%emt 0:00:00]} 41. Bxa8 {[%emt 0:00:18]} Kf8 {[%emt 0:00:46]} 42. Bc6 {[%emt 0:00:11]} Bc3 {[%emt 0:00:24]} 43. Bd7 {[%emt 0:00:05]} Bb2 {[%emt 0:00:18]} 44. c5 {[%emt 0:00:09]} Bc3 {[%emt 0:03:02]} 45. Kf5 {[%emt 0:02:05]} Bd4 {[%emt 0:03:19]} 46. c6 {[%emt 0:00:10]} Bb6 {[%emt 0:01:08]} 47. Kxg5 {[%emt 0:00:12]} Bd8 {[%emt 0:00:55]} 48. Kf5 {[%emt 0:00:17]} Bc7 {[%emt 0:01:52]} 49. g5 {[%emt 0:00:19]} Kg8 {[%emt 0:00:51]} 50. e6 {[%emt 0:00:44]} 1-0

[Event "ESCC-65 2022"]
[Site "Lublin"]
[Date "2022.07.07"]
[Round "3.11"]
[White "Sciupokas, Arunas"]
[Black "Wagner-Michel, Annett"]
[Result "1/2-1/2"]
[ECO "B31"]
[WhiteElo "1960"]
[BlackElo "2056"]
[Annotator "NA RC"]
[PlyCount "71"]
[EventDate "2022.07.05"]
[EventType "swiss"]
[EventCountry "POL"]
[SourceTitle "playchess.com"]
[Source "ChessBase"]
[SourceQuality "1"]
[TimeControl "40/5400+30:1800+30"]

1. e4 {[%emt 0:00:03]} c5 {[%emt 0:00:06]} 2. Nf3 {[%emt 0:00:15]} Nc6 {[%emt 0:00:11]} 3. Bb5 {[%emt 0:00:22]} g6 {[%emt 0:00:11]} 4. O-O {[%emt 0:00:36]} Bg7 {[%emt 0:00:17]} 5. Re1 {[%emt 0:03:17]} e5 {[%emt 0:00:38]} 6. Bxc6 {[%emt 0:01:52]} dxc6 {[%emt 0:00:14]} 7. d3 {[%emt 0:00:16]} Qc7 {[%emt 0:01:49]} 8. Be3 {[%emt 0:02:56]} b6 {[%emt 0:00:25]} 9. a4 {[%emt 0:02:44]} Nh6 {[%emt 0:13:58]} 10. a5 {[%emt 0:03:18]} Rb8 {[%emt 0:00:16]} 11. axb6 {[%emt 0:00:42]} axb6 {[%emt 0:00:03]} 12. h3 {[%emt 0:00:51]} f6 {[%emt 0:00:32]} 13. b4 {[%emt 0:10:25]} cxb4 {[%emt 0:06:57]} 14. Qd2 {[%emt 0:01:13]} Nf7 {[%emt 0:04:42]} 15. Qxb4 {[%emt 0:00:32]} Qd6 {[%emt 0:32:09]} 16. Qxd6 {[%emt 0:07:53]} Nxd6 {[%emt 0:00:03]} 17. Nc3 {[%emt 0:02:19]} O-O {[%emt 0:05:32]} 18. Na4 {[%emt 0:07:42]} b5 {[%emt 0:02:25]} 19. Bc5 {[%emt 0:16:57]} Rd8 {[%emt 0:04:24]} 20. Ba7 {[%emt 0:01:37]} Rb7 {[%emt 0:03:49]} 21. Nc5 {[%emt 0:01:06]} Rf7 {[%emt 0:05:33]} 22. Bb6 {[%emt 0:01:29]} Re8 {[%emt 0:01:55]} 23. Ra8 {[%emt 0:02:38]} Bf8 {[%emt 0:02:50]} 24. Rea1 {[%emt 0:02:24]} Nb7 {[%emt 0:02:09]} 25. Nxb7 {[%emt 0:06:22]} Rxb7 {[%emt 0:00:10]} 26. Be3 {[%emt 0:00:37]} Bd7 {[%emt 0:01:04]} 27. Nd2 {[%emt 0:03:33]} Rxa8 {[%emt 0:01:22]} 28. Rxa8 {[%emt 0:00:03]} Kf7 {[%emt 0:00:18]} 29. Nb3 {[%emt 0:02:45]} Rc7 {[%emt 0:02:23]} 30. Bb6 {[%emt 0:02:47]} Rc8 {[%emt 0:00:46]} 31. Ra7 {[%emt 0:00:59]} Ke8 {[%emt 0:03:07]} 32. Bc5 {[%emt 0:04:20]} Be7 {[%emt 0:01:36]} 33. Bxe7 {[%emt 0:06:50]} Kxe7 {[%emt 0:00:03]} 34. Nc5 {[%emt 0:00:17]} Rd8 {[%emt 0:00:05]} 35. Nb7 {[%emt 0:00:48]} Rc8 {[%emt 0:00:22]} 36. Nc5 {[%emt 0:00:13]} 1/2-1/2